Cogmind - Beta 14 @@@ ROGUE MODE // 2024.08.07 @ 21:34:41 Player: Sionnis Result: Destroyed by DH-RKO(x) with Makeshift Spear Performance ------------- Evolutions (0) 0 Regions Visited (4) 800 Robots Destroyed (23) 115 Value Destroyed (737) 737 Prototype IDs (11) 220 Alien Tech Used (0) 0 Bonus (300) 300 TOTAL SCORE: 2172 Bonus ------- Registered with UFD 300 Cogmind --------- Core Integrity 0/250 Matter 205/300 Energy 99/100 System Corruption 0% Temperature Cool (2) Movement Flying (40) Location -9/Scraptown Parts ------- > --- POWER (1) -------- (None) > --- PROPULSION (2) --- Xenon Bombardment Thruster > --- UTILITY (2) ------ Enhanced Optical Array > --- WEAPON (2) ------- DM-GVY's Chainsaw > --- INVENTORY (5) ---- Medium Storage Unit Experimental Sensor Array Advanced Signal Interpreter Improved Hacking Suite PL-3XN's Ring of Power Peak State ------------ > --- POWER ------------ Light Angular Momentum Engine > --- PROPULSION ------- Flight Unit Xenon Bombardment Thruster > --- UTILITY ---------- Enhanced Optical Array A0-MCA's Component Scanner > --- WEAPON ----------- Improved Datajack Scythe > --- INVENTORY -------- Experimental Sensor Array Advanced Signal Interpreter Improved Hacking Suite Rocket Launcher Plasma Cutter [Rating: 32] Favorites ----------- Power Ion Engine Engine Ion Engine Propulsion Armored Wheel Treads Light Treads Wheel Armored Wheel Flight Unit Xenon Bombardment Thruster Utility High-capacity Storage Unit Storage High-capacity Storage Unit Processor Targeting Computer Protection Light Armor Plating Weapon Heavy Assault Rifle Energy Cannon Beam Cannon Ballistic Gun Heavy Assault Rifle Ballistic Cannon Light Cannon Launcher Grenade Launcher Slashing Weapon Scythe Special Melee Weapon Datajack Build | -11 -10 -10 -9 -9 ------- Run | Yrd Mat Sub Rec Scr Slots Evolved . | . . . . . Power . | . . . . . Propulsion . | . . . . . Utility . | . . . . . Weapon . | . . . . . Parts Attached 39 | 6 11 2 3 17 Power 5 | 1 2 . . 2 Engine 5 | 1 2 . . 2 Core . | . . . . . Reactor . | . . . . . Propulsion 7 | 2 2 . . 3 Treads 2 | 2 . . . . Leg . | . . . . . Wheel 2 | . 2 . . . Hover . | . . . . . Flight 3 | . . . . 3 Utility 10 | 1 2 . 1 6 Device . | . . . . . Storage 4 | 1 1 . . 2 Processor 4 | . 1 . . 3 Hackware . | . . . . . Protection 2 | . . . 1 1 Artifact . | . . . . . Weapon 17 | 2 5 2 2 6 Energy Gun . | . . . . . Energy Cannon 1 | . 1 . . . Ballistic Gun 8 | 2 2 2 2 . Ballistic Cannon 1 | . 1 . . . Launcher 2 | . 1 . . 1 Special Weapon . | . . . . . Impact Weapon . | . . . . . Slashing Weapon 3 | . . . . 3 Piercing Weapon . | . . . . . Special Melee Weapon 2 | . . . . 2 Unidentified Prototypes . | . . . . . Parts Lost 2 | . . . . 2 Power . | . . . . . Propulsion 1 | . . . . 1 Utility . | . . . . . Weapon 1 | . . . . 1 Highest Loss Streak 2 | . . . . 2 To Critical Strikes . | . . . . . Average Slot Usage (%) 98 | . 97 100 100 98 Engine 13 | . 14 14 14 13 Treads 4 | . 12 . . . Wheel 19 | . 15 28 28 20 Flight 3 | . . . . 7 Storage 12 | . 14 14 14 10 Processor 12 | . 11 14 . 15 Protection 2 | . . . 13 1 Energy Cannon 1 | . 3 . . . Ballistic Gun 17 | . 18 25 28 12 Ballistic Cannon 2 | . 5 . . . Slashing Weapon 3 | . . . . 7 Special Melee Weapon 3 | . . . . 7 Peak Build Rating 32 | 6 12 13 13 32 Average Rating 16 | 4 9 12 13 22 On Entrance 8 | . 6 11 13 13 Naked Turns . | . . . . . Heaviest Build 55 | 13 51 52 55 55 Greatest Support 40 | 40 40 24 24 24 Greatest Overweight (x) 4 | . 4 2 2 2 Average Overweight (x) 1 | . 1 2 2 1 Largest Inventory Capacity 20 | 8 20 20 20 20 Average Capacity 17 | 6 18 20 20 16 Most Carried 20 | 2 14 18 19 20 Average Carried 13 | 1 10 14 18 15 Final Capacity 20 | 8 20 20 20 5 Final Carried 19 | 2 13 18 19 5 Class Distribution -------------------- 89% | Mutant 10% | Scavenger-Mutant Dominant Class ---------------- Mutant | -10/Materials Mutant | -10/Subcaves Scavenger-Mutant | -9/Recycling Mutant | -9/Scraptown Resources | -11 -10 -10 -9 -9 ----------- Run | Yrd Mat Sub Rec Scr Matter Collected 953 | 198 401 99 190 65 Remotely . | . . . . . Salvage Created 719 | . 385 128 206 . Parts 49 | . 22 13 14 . Haulers Intercepted . | . . . . . Recyclers Shooed . | . . . . . Parts Field Recycled . | . . . . . Retrieved Matter . | . . . . . Parts Self-Destructed 6 | . . 6 . . Prevented . | . . . . . Kills | -11 -10 -10 -9 -9 ------- Run | Yrd Mat Sub Rec Scr Combat Hostiles Destroyed 19 | . 9 6 4 . Guns 11 | . 5 2 4 . Cannons 4 | . 4 . . . AOE 4 | . . 4 . . Classes Destroyed 6 | . 2 3 1 . Turret 2 | . . 2 . . Watcher 2 | . 2 . . . Swarmer 4 | . . 4 . . Grunt 9 | . 9 . . . Sentry 4 | . . . 4 . Subdweller 2 | . . 2 . . Best Kill Streak 6 | . 3 6 2 . Combat Bots Only 4 | . 2 4 2 . Max Kills in Single Turn 2 | . 1 2 1 . Gunslinging . | . . . . . Exploded 2 | . . 2 . . Melee . | . . . . . Uniques/NPCs Destroyed . | . . . . . Combat | -11 -10 -10 -9 -9 -------- Run | Yrd Mat Sub Rec Scr Hostile Shots Fired 137 | . 48 46 22 21 Missed 58 | . 19 20 6 13 Damage Taken 1130 | . 422 332 249 127 Core 253 | . 68 60 78 47 Absorbed by Shields . | . . . . . Core Remaining (%) 100 | 100 . . . . Volleys Fired 65 | . 41 14 10 . Largest 2 | . 2 2 2 . Hottest 95 | . 95 53 53 . Shots Fired 127 | . 82 26 19 . Gun 89 | . 50 20 19 . Cannon 31 | . 31 . . . Launcher 7 | . 1 6 . . Special . | . . . . . Kinetic 118 | . 79 20 19 . Thermal 2 | . 2 . . . Explosive 7 | . 1 6 . . Electromagnetic . | . . . . . Robot Hit Streak 17 | . 16 17 12 . Robot Miss Streak 5 | . 5 1 1 . Penetration Max . | . . . . . Secondary Targets . | . . . . . Shots Hit Robots 94 | . 53 23 17 1 Core Hits 42 | . 21 15 6 . Critical Kills . | . . . . . Critical Parts Destroyed . | . . . . . Critical Strikes . | . . . . . Melee Attacks 3 | . . . . 3 Impact . | . . . . . Slashing 2 | . . . . 2 Piercing . | . . . . . Sneak Attacks 1 | . . . . 1 Combat Hostiles . | . . . . . Follow-up Attacks . | . . . . . Damage Inflicted 1661 | . 806 551 304 . Guns 1081 | . 485 292 304 . Cannons 308 | . 308 . . . Explosions 272 | . 13 259 . . Melee . | . . . . . Ramming . | . . . . . Kinetic 1372 | . 776 292 304 . Thermal 17 | . 17 . . . Explosive 272 | . 13 259 . . Electromagnetic . | . . . . . Impact . | . . . . . Slashing . | . . . . . Piercing . | . . . . . Highest Corruption 2 | . 2 2 2 . Average Corruption 2 | . 2 2 2 . Corruption Purged . | . . . . . Corruption Blocked . | . . . . . Effects 21 | . 13 2 6 . Message Errors 10 | . 6 1 3 . Matter Fused 3 | . 1 1 1 . Energy Discharges 3 | . 3 . . . Data Loss (minor) 1 | . . . 1 . Data Loss (major) 3 | . 2 . 1 . Misfires 1 | . 1 . . . Overload Shots . | . . . . . Overflow Damage . | . . . . . Projectiles . | . . . . . Explosions . | . . . . . Melee . | . . . . . Knockbacks 3 | . 3 . . . Impact . | . . . . . Kinetic 3 | . 3 . . . Secondary . | . . . . . Self-Inflicted Damage 56 | . 9 47 . . Shots 3 | . 1 2 . . Rammed . | . . . . . Targets Rammed . | . . . . . Kicked . | . . . . . Crushed . | . . . . . Highest Temperature 36 | . 36 . 4 . Average Temperature 8 | . 9 . 3 . Received Heat Transfer 498 | . 267 126 63 42 Siege Activations . | . . . . . Robots Corrupted . | . . . . . Combat Hostiles . | . . . . . Parts Fried . | . . . . . Impact Corruptions . | . . . . . Robots Melted . | . . . . . Combat Hostiles . | . . . . . Parts Melted . | . . . . . Heat Transferred 37 | . 37 . . . Parts Sabotaged . | . . . . . Parts Stolen . | . . . . . Parts Stripped . | . . . . . Power Chain Reactions . | . . . . . Alert | -11 -10 -10 -9 -9 ------- Run | Yrd Mat Sub Rec Scr Peak Influence 218 | . 218 . 131 . Initial 82 | . . . 82 . Average 54 | . 46 . 84 . Maximum Alert Level 1 | . 1 . . . Low Security (%) 98 | 100 97 . 100 . Level 1 1 | . 2 . . . Level 2 . | . . . . . Level 3 . | . . . . . Level 4 . | . . . . . Level 5 . | . . . . . High Security . | . . . . . Max Security . | . . . . . Squads Dispatched 3 | . 3 . . . Investigation 1 | . 1 . . . Extermination . | . . . . . Reinforcement 2 | . 2 . . . Assault . | . . . . . Garrison . | . . . . . Intercept . | . . . . . Searches Triggered . | . . . . . Construction Impeded . | . . . . . Haulers Reinforced . | . . . . . Active Scanning Responses . | . . . . . Cargo Convoy Interrupts . | . . . . . Stealth | -11 -10 -10 -9 -9 --------- Run | Yrd Mat Sub Rec Scr Distress Signals 2 | . 2 . . . Communications Jammed . | . . . . . Distress Signals . | . . . . . Times Spotted 39 | . 17 9 4 9 Peak Tracking Total 9 | . 4 6 2 9 Tactical Retreats 2 | . . 1 . 1 Traps | -11 -10 -10 -9 -9 ------- Run | Yrd Mat Sub Rec Scr Traps Triggered 1 | . 1 . . . Indirectly . | . . . . . Trap Hack Attempts . | . . . . . Triggered . | . . . . . Disarmed . | . . . . . Reprogrammed . | . . . . . Reused . | . . . . . Traps Extracted . | . . . . . Installed . | . . . . . Triggered . | . . . . . Machines | -11 -10 -10 -9 -9 ---------- Run | Yrd Mat Sub Rec Scr Machines Disabled 5 | . . 3 . 2 Max in Single Turn 2 | . . 2 . 1 Machines Repaired . | . . . . . Machines Dismantled . | . . . . . Machines Sabotaged . | . . . . . Overloaded Fab Kills . | . . . . . Hacking | -11 -10 -10 -9 -9 --------- Run | Yrd Mat Sub Rec Scr Machines Accessed 11 | . 7 . 4 . Terminals 9 | . 5 . 4 . Fabricators . | . . . . . Repair Stations . | . . . . . Recycling Units 2 | . 2 . . . Scanalyzers . | . . . . . Garrison Access . | . . . . . Total Hacks 26 | . 20 . 6 . Successful 12 | . 9 . 3 . Failed 14 | . 11 . 3 . Catastrophic 1 | . . . 1 . Database Lockouts . | . . . . . Manual 20 | . 14 . 6 . Terminals 24 | . 18 . 6 . Fabricators . | . . . . . Repair Stations . | . . . . . Recycling Units 2 | . 2 . . . Scanalyzers . | . . . . . Garrison Access . | . . . . . Terminal Hacks 2 | . 2 . . . Robot Analysis 1 | . 1 . . . Hauler Manifests 1 | . 1 . . . Fabricator Hacks . | . . . . . Repair Station Hacks . | . . . . . Recycling Unit Hacks 2 | . 2 . . . Retrieve Components 2 | . 2 . . . Scanalyzer . | . . . . . Garrison Access Hacks . | . . . . . Unauthorized Hacks 8 | . 5 . 3 . Terminals 8 | . 5 . 3 . Botnet 4 | . 2 . 2 . Skim 4 | . 3 . 1 . Fabricators . | . . . . . Repair Stations . | . . . . . Recycling Units . | . . . . . Scanalyzers . | . . . . . Garrison Access . | . . . . . Data Cores Recovered . | . . . . . Used . | . . . . . Hacking Detections 8 | . 5 . 3 . Full Trace Events 2 | . 2 . . . Feedback Events . | . . . . . Feedback Blocked . | . . . . . Robot Schematics Acquired . | . . . . . Robots Built . | . . . . . Authchips . | . . . . . Time . | . . . . . Total Robot Build Rating . | . . . . . Part Schematics Acquired . | . . . . . Parts Built . | . . . . . Authchips . | . . . . . Time . | . . . . . Total Part Build Rating . | . . . . . Parts Repaired . | . . . . . Time . | . . . . . Parts Recycled . | . . . . . Recycled Matter . | . . . . . Retrieved Matter . | . . . . . Retrieved Components 11 | . 11 . . . Parts Scanalyzed . | . . . . . Part Schematics Acquired . | . . . . . Parts Damaged . | . . . . . Bothacking | -11 -10 -10 -9 -9 ------------ Run | Yrd Mat Sub Rec Scr Used RIF Installer . | . . . . . Robots Hacked 1 | . . . . 1 Non-combat 1 | . . . . 1 Combat . | . . . . . Robot Hacks Applied 1 | . . . . 1 parse_system 1 | . . . . 1 Relay Couplers Released . | . . . . . Fabnet Peak Effective % . | . . . . . Robots Rewired . | . . . . . Allies Hacked . | . . . . . Hacks Repelled . | . . . . . Allies | -11 -10 -10 -9 -9 -------- Run | Yrd Mat Sub Rec Scr Total Allies . | . . . . . Largest Group . | . . . . . Highest-Rated Group . | . . . . . Highest-Rated Ally . | . . . . . Total Orders . | . . . . . Ally Attacks . | . . . . . Total Damage . | . . . . . Kills . | . . . . . Allies Corrupted . | . . . . . Allies Melted . | . . . . . Intel | -11 -10 -10 -9 -9 ------- Run | Yrd Mat Sub Rec Scr Robot Analysis Total 1 | . 1 . . . Derelict Logs Recovered 4 | . . 1 . 3 Drone Launches . | . . . . . Drone Recoveries . | . . . . . Exploration | -11 -10 -10 -9 -9 ------------- Run | Yrd Mat Sub Rec Scr Turns Passed 4482 | 78 1592 101 557 2154 Spaces Moved 2875 | 44 496 43 400 1892 Core 2 | 2 . . . . Treads 330 | 42 288 . . . Legs . | . . . . . Wheels 1956 | . 208 43 400 1305 Hover . | . . . . . Flight 587 | . . . . 587 Fastest Speed 37 | 50 120 120 120 37 Average Speed 123 | 155 172 120 120 110 Slowest Speed 240 | 160 240 120 120 197 Overloaded Moves . | . . . . . Propulsion Burnouts . | . . . . . Robots Hopped 2 | . . . . 2 Cave-ins Triggered . | . . . . . Exploration Rate (%) 53 | 4 82 4 79 96 Regions Visited 4 Branch Regions 3 Pre-discovered Areas . | . . . . . Known Exits Taken . | . . . . . Unknown Exits Taken 4 | 1 1 1 1 . Scrap Searched 5 | . . . . 5 Spaces Dug 2 | . . 2 . . Terrain Destroyed 21 | . 3 18 . . Melee . | . . . . . Projectile . | . . . . . AOE 21 | . 3 18 . . Terrain Rammed . | . . . . . Walls Destroyed . | . . . . . Machines Disabled . | . . . . . Actions | -11 -10 -10 -9 -9 --------- Run | Yrd Mat Sub Rec Scr Total 3694 | 51 1152 65 457 1969 Wait 621 | . 578 3 40 . Move 2867 | 43 495 42 399 1888 Hop 2 | . . . . 2 Pick Up 38 | 2 14 4 2 16 Fast Attach 24 | 6 6 . 1 11 Attach . | . . . . . Detach 3 | . 2 . . 1 Swap 15 | . 5 2 2 6 Drop 56 | . 11 . 3 42 Fire 65 | . 41 14 10 . Melee 3 | . . . . 3 Ram . | . . . . . Kick . | . . . . . Crush . | . . . . . Escape Stasis . | . . . . . Rewire . | . . . . . Trap . | . . . . . Miscellaneous . | . . . . . Route ------- -11/Scrapyard -10/Materials (discovered 3 exits: [*Mat] / [*Min] / [*Sub]) -10/Subcaves -9/Recycling (discovered 2 exits: [*Fac] / *Scr) -9/Scraptown (discovered 2 exits: [*Fac x2]) History --------- Turn | Location | Event 25 | -11/Scrapyard | Discovered new exit (range 15) 79 | -11/Scrapyard | Entered Materials 304 | -10/Materials | Build established: Mutant 313 | -10/Materials | Discovered new exit (range 16) 563 | -10/Materials | Discovered new exit (range 15) 1666 | -10/Materials | Discovered new exit (range 5) 1671 | -10/Materials | Entered Subcaves 1671 | -10/Subcaves | Discovered new exit (range 9) 1702 | -10/Subcaves | Learned Materials stockpile data 1713 | -10/Subcaves | Core integrity fell below 50% 1772 | -10/Subcaves | Entered Recycling 1933 | -9/Recycling | Discovered new exit (range 10) 2087 | -9/Recycling | Build established: Scavenger-Mutant 2246 | -9/Recycling | Core integrity fell below 20% 2300 | -9/Recycling | Scanned before Scraplab entrance 2327 | -9/Recycling | Discovered new exit (range 3) 2329 | -9/Recycling | Entered Scraptown 2329 | -9/Scraptown | System corruption cleaned by C-Scrubber 2575 | -9/Scraptown | Build established: Mutant 2683 | -9/Scraptown | Heard Great Nut preacher, LISTEN AND RECITE! 2703 | -9/Scraptown | Scanned Subdweller tech in exchange for log data 2706 | -9/Scraptown | Learned 12 Research zone layouts 2707 | -9/Scraptown | Learned Factory trap positions 2726 | -9/Scraptown | Discovered new exit (range 5) 2823 | -9/Scraptown | Visited Cyclists 2856 | -9/Scraptown | Visited Awakened 2902 | -9/Scraptown | Visited TADAMA 2924 | -9/Scraptown | Visited UFD Registry 2924 | -9/Scraptown | Registered with UFD as "Bolttalker" 2944 | -9/Scraptown | Visited Cave Peace 2980 | -9/Scraptown | Visited The Evicted 3001 | -9/Scraptown | Visited Spacefarers 3082 | -9/Scraptown | Visited Red Mages 3152 | -9/Scraptown | Entered Cyclist Reading Room 3443 | -9/Scraptown | Visited Chapter 10 3524 | -9/Scraptown | Visited Curators Association 3595 | -9/Scraptown | Visited Scrap Suit Storage 3634 | -9/Scraptown | Visited Infowarlord's Domain 3645 | -9/Scraptown | Found Exp. Sensor Array 3857 | -9/Scraptown | Visited Junk Repository 3903 | -9/Scraptown | Visited A0-MCA Data Center 3910 | -9/Scraptown | Given a C rating by A0-MCA 3945 | -9/Scraptown | Found A0-MCA's Component Scanner 3972 | -9/Scraptown | Visited Research Penetration Think Tank 4000 | -9/Scraptown | Visited Junk Repository 4046 | -9/Scraptown | Visited LU-1G1's Boring Crew 4281 | -9/Scraptown | Discovered new exit (range 5) 4461 | -9/Scraptown | Attacked by Scraptown defenders 4467 | -9/Scraptown | Found PL-3XN's Ring of Power 4470 | -9/Scraptown | Found DM-GVY's Chainsaw 4483 | -9/Scraptown | Destroyed by DH-RKO(x) with Makeshift Spear Last Messages --------------- next trip, but they did find this chip with the final tactical situation still burned into its memory. JU-L52(c): We have no idea where this leg originated, or how it was even formed, but the materials within make it a one-of-a-kind specimen in many respects. Given its unique nature, practical use seems impossible. Enclosure breached. ANNOUNCEMENT: Intruder alert! Defend Scraptown! Enclosure breached. Acquired PL-3XN's Ring of Power. Autobeam Turret pops up from the ground. Dropped Scythe. Acquired DM-GVY's Chainsaw. Flight Unit destroyed. Dropped Sub. Power Source. Imp. Datajack destroyed. Machine disabled. Map ----- +----------------------------------------------------+ | ?####################### ###########??????????? | | ???????????????????????## ##????????????????????? | | ????????????????????????# #?????????????????????? | | ????????????????????????# ###########???????????? | | ????????????????????????# E#"""""""""#???????????? | | ????????????????????????# #"""""""""#???????????? | | ???????????????########## #"""""""""#???????????? | | ???????????????#""""""""# #"""""""""#???????????? | | ???###########?#"" """""# #""" ! """#???????????? | | ???#![# #!/#?#" ""# #""" """#???????????? | | ???# /# #!=#?#" ""# #"!" """#???????????? | | ???#/ # #/ #?# ""# #"""c[""""#???????????? | | ???# #?#" ""# #"""&!="""#???????????? | | ???# #?# "# # ![=*= "#???????????? | | ???#### ######?#### ##### ## ########???????????? | | ####### ########### ##### ## #########??????????? | | """"""" """"""""""" """"" "" "## !!#??????????? | | "## = #??????????? | | "## ####??????????? | | "## ]#??????????? | | "## =!]#??????????? | | == #??????????? | | """"""""""""""""""""""""" "## ####??????????? | | """"""""""""""""""""""""" "## #??????????? | | ##### ################"" "## !#??????????? | | ##????????#""@ "##########????????? | | X"#????????#""x "## #"""""#????????? | | "" "" ##????????#""E "## !! ! #????????? | | "" "" X"#??????###"" "## ##"#?????? | | " " ######### #"" "## X" #?????? | | "" #?????? | | "" "## #?????? | | " " ######### #" "## !!!! !#?????? | | "" "" ""#??????###" "## #"""""#""#?????? | | "" "" ##????????#"" "#############?????? | | ""?????????#"" "###########???????? | | #?????????#""E "## ! #???????? | | ##### ################"" "## #???????? | | """""""""""""""""""""""" "## #???????? | | """""""""""""""""""""""""x #???????? | | E "## #???????? | | * "###########???????? | | #?????????????????? | | ##????????????????? | | #????????????????? | | """"""""" """"""""""" """""" ##????????????????? | | ######### ########### ###### #?????????????????? | | #???"""""???#" "# #?????????????????? | | ###?# ?##"" ""## #?????????????????? | | #??# #?#!" "=## #?????????????????? | +----------------------------------------------------+ Best States ------------- Heat Dissipation 25 Energy Generation 18 Energy Capacity 250 Matter Stores 300 Matter Capacity 300 Sight Range 22 Terrain Scan Density 10 Armor Coverage 150 Evasion (%) 62 Targeting Accuracy 5 Recoil Reduction 2 Item Schematics ----------------- None Robot Schematics ------------------ None Fabricated ------------ Nothing Alien Tech Used ----------------- None Achievements -------------- None Challenges ------------ None Game ------ Seed GrenadeWarpGuard Manual? 0 Play Time 00:27:35 Cumulative 550.7 hours Start 2024.08.07 @ 21:08:11 End 2024.08.07 @ 21:34:41 Sessions 1 Manual Loads 0 Difficulty Rogue Special Mode None Game No. 288 Rogue 288 Adventurer 0 Explorer 0 Win Type - Total 36 Types 22/2/4/3/1/1/1/1/1 Lore% 85 Gallery% 96 Achievement% 98 Wizard Run 0 Options --------- Layout 1 ASCII 0 Keyboard 0 Movement Numpad Keybinds 0 Fullscreen 1 Font 24/Smallcaps Map View 50x35 Zoom Use 0% Tactical HUD 1 Map Filters NONE Filters NONE Steam 1 RUN: ea4ae70d-758b-45f7-8dda-85716219578b